fUST/lending_fUST_20240423
["ID","MTS","AMOUNT","RATE_DAILY","PERIOD"]
[323307610,1713883843592,-619.879421,0.00021095,2]
[323307612,1713883843601,-619.879421,0.00021095,2]
[323307614,1713883843611,-500.0,0.00021095,2]
[323307624,1713883843620,-1386.48,0.00021095,2]
[323307626,1713883843712,-509.920182,0.00021095,2]
[323307629,1713883843724,-949.46,0.00021095,2]
[323307630,1713883843733,-509.920182,0.00021095,2]
[323307632,1713883843742,-3273.74,0.00021095,2]
[323307634,1713883843752,-500.0,0.00021095,2]
[323307636,1713883843761,-569.36,0.00021095,2]
[323307638,1713883843771,-1351.08,0.00021095,2]
[323307641,1713883843780,-500.0,0.00021095,2]
[323307642,1713883843790,-306.0,0.00021096,2]
[323307644,1713883843803,-150.0,0.0002112,2]
[323307647,1713883843813,-292.0,0.00021191,2]
[323307648,1713883843823,-153.0,0.00021224,2]
[323307650,1713883843832,-153.0,0.00021224,2]
[323307653,1713883843842,-258.3285172,0.00021224,2]
[323307654,1713883843852,-153.0,0.00021224,2]
[323307656,1713883843861,-153.0,0.00021224,2]
[323307658,1713883843870,-153.0,0.00021224,2]
[323307660,1713883843880,-153.0,0.00021224,2]
[323307662,1713883843889,-417.0,0.00021226,2]
[323307665,1713883843900,-5000.0,0.000213,2]
[323307667,1713883843909,-2000.0,0.000213,2]
[323307669,1713883843918,-2000.0,0.000213,2]
[323307671,1713883843929,-1053.48,0.00021369,2]
[323307673,1713883843939,-500.0,0.00021369,2]
[323307675,1713883843948,-500.0,0.00021369,2]
[323307677,1713883843957,-557.08,0.00021369,2]
[323307679,1713883843967,-1412.41,0.00021369,2]
[323307681,1713883843975,-500.0,0.00021369,2]
[323307682,1713883843984,-500.0,0.00021369,2]
[323307685,1713883843993,-500.0,0.00021369,2]
[323307687,1713883844002,-500.0,0.00021369,2]
[323307689,1713883844011,-500.0,0.00021369,2]
[323307691,1713883844020,-500.0,0.00021369,2]
[323307692,1713883844030,-500.0,0.00021369,2]
[323307694,1713883844039,-500.0,0.00021369,2]
[323307697,1713883844048,-1320.99,0.00021369,2]
[323307698,1713883844057,-1097.94,0.00021369,2]
[323307700,1713883844066,-673.0,0.00021369,2]
[323307702,1713883844075,-929.33,0.00021369,2]
[323307704,1713883844084,-843.74,0.00021369,2]
[323307706,1713883844093,-500.0,0.00021369,2]
[323307708,1713883844102,-311.46743292,0.00021369,2]
[323307711,1713883844112,-773.44,0.00021369,2]
[323307712,1713883844121,-500.0,0.00021369,2]
[323307715,1713883844130,-835.58,0.00021369,2]
[323307716,1713883844139,-500.0,0.00021369,2]
[323307718,1713883844149,-307.66279336,0.00021369,2]
[323307721,1713883844159,-500.0,0.00021369,2]
[323307723,1713883844167,-943.99,0.00021369,2]
[323307725,1713883844180,-500.0,0.00021369,2]
[323307727,1713883844189,-151.0,0.00021369,2]
[323307729,1713883844198,-500.0,0.00021369,2]
[323307731,1713883844207,-531.06,0.00021369,2]
[323307733,1713883844216,-1731.85,0.00021369,2]
[323307735,1713883844225,-599.02,0.00021369,2]
[323307736,1713883844234,-500.0,0.00021369,2]
[323307738,1713883844243,-630.75,0.00021369,2]
[323307740,1713883844253,-535.77,0.00021369,2]
[323307742,1713883844262,-1515.48,0.00021369,2]
[323307745,1713883844271,-1307.17,0.00021369,2]
[323307747,1713883844281,-693.33,0.00021369,2]
[323307749,1713883844290,-1012.35,0.00021369,2]
[323307751,1713883844299,-756.54,0.00021369,2]
[323307753,1713883844308,-678.94,0.00021369,2]
[323307755,1713883844318,-1198.42,0.00021369,2]
[323307757,1713883844327,-612.11,0.00021369,2]
[323307758,1713883844337,-500.0,0.00021369,2]
[323307761,1713883844347,-500.0,0.00021369,2]
[323307763,1713883844360,-1682.38,0.00021369,2]
[323307765,1713883844369,-500.0,0.00021369,2]
[323307767,1713883844379,-655.72,0.00021369,2]
[323307769,1713883844389,-1333.1,0.00021369,2]
[323307771,1713883844398,-5073.58,0.00021369,2]
[323307773,1713883844408,-12338.54,0.00021369,2]
[323307775,1713883844417,-599.15805693,0.00021369,2]
[323307777,1713883844428,-1327.34,0.00021369,2]
[323307779,1713883844439,-2883.91,0.00021369,2]
[323307781,1713883844454,-567.12,0.00021369,2]
[323307784,1713883844470,-863.93,0.00021369,2]
[323307787,1713883844484,-500.0,0.00021369,2]
[323307789,1713883844497,-563.81,0.00021369,2]
[323307792,1713883844511,-9792.91,0.00021369,2]
[323307796,1713883844526,-245.68431752,0.00021369,2]
[323307800,1713883844540,-772.83,0.00021369,2]
[323307802,1713883844554,-948.24,0.00021369,2]
[323307805,1713883844567,-483.12347491,0.00021369,2]
[323307807,1713883844581,-500.0,0.00021369,2]
[323307810,1713883844594,-1459.08,0.00021369,2]
[323307812,1713883844607,-3152.36,0.00021369,2]
[323307815,1713883844621,-500.0,0.00021369,2]
[323307817,1713883844632,-500.0,0.00021369,2]
[323307820,1713883844647,-500.0,0.00021369,2]
[323307822,1713883844661,-273.6028983,0.00021369,2]
[323307825,1713883844676,-880.11,0.00021369,2]
[323307827,1713883844689,-500.0,0.00021369,2]
[323307830,1713883844702,-953.05,0.00021369,2]
[323307832,1713883844716,-500.0,0.00021369,2]
[323307835,1713883844732,-2789.52,0.00021369,2]
[323307837,1713883844746,-151.0,0.00021369,2]
[323307840,1713883844756,-599.98,0.00021369,2]
[323307842,1713883844767,-182.962666,0.00021369,2]
[323307844,1713883844780,-500.0,0.00021369,2]
[323307847,1713883844793,-609.44,0.00021369,2]
[323307849,1713883844807,-1503.26,0.00021369,2]
[323307851,1713883844819,-4876.49,0.00021369,2]
[323307854,1713883844830,-500.0,0.00021369,2]
[323307856,1713883844841,-4690.71,0.00021369,2]
[323307858,1713883844853,-151.0,0.00021369,2]
[323307861,1713883844865,-7956.35,0.00021369,2]
[323307863,1713883844877,-500.0,0.00021369,2]
[323307865,1713883844889,-702.23,0.00021369,2]
[323307867,1713883844901,-877.33,0.00021369,2]
[323307870,1713883844914,-5128.78,0.00021369,2]
[323307872,1713883844928,-1915.26,0.00021369,2]
[323307874,1713883844940,-619.879421,0.00021369,2]
[323307877,1713883844954,-619.879421,0.00021369,2]
[323307879,1713883844967,-500.0,0.00021369,2]
[323307881,1713883844979,-1386.48,0.00021369,2]
[323307883,1713883844991,-509.920182,0.00021369,2]
[323307886,1713883845003,-949.46,0.00021369,2]
[323307888,1713883845016,-509.920182,0.00021369,2]
[323307891,1713883845028,-3273.74,0.00021369,2]
[323307893,1713883845040,-570.76381048,0.00021369,2]
[323307895,1713883845052,-569.36,0.00021369,2]
[323307898,1713883845065,-1351.08,0.00021369,2]
[323307900,1713883845077,-500.0,0.00021369,2]
[323307902,1713883845090,-622.51722242,0.00021392,2]
[323307905,1713883845102,-420.0,0.00021395,2]
[323307907,1713883845114,-250.0,0.00021407,2]
[323307909,1713883845126,-154.6736905,0.00021413,2]
[323307911,1713883845138,-268.3049176,0.00021612,2]
[323307914,1713883845151,-1053.48,0.00021643,2]
[323307916,1713883845163,-500.0,0.00021643,2]
[323307918,1713883845177,-500.0,0.00021643,2]
[323307920,1713883845188,-557.08,0.00021643,2]
[323307923,1713883845201,-1412.41,0.00021643,2]
[323307925,1713883845214,-500.0,0.00021643,2]
[323307927,1713883845225,-500.0,0.00021643,2]
[323307929,1713883845237,-500.0,0.00021643,2]
[323307932,1713883845249,-500.0,0.00021643,2]
[323307934,1713883845260,-500.0,0.00021643,2]
[323307936,1713883845270,-519.66768922,0.00021643,2]
[323307939,1713883845280,-500.0,0.00021643,2]
[323307941,1713883845289,-500.0,0.00021643,2]
[323307943,1713883845299,-1320.99,0.00021643,2]
[323307945,1713883845307,-1097.94,0.00021643,2]
[323307947,1713883845317,-673.0,0.00021643,2]
[323307949,1713883845326,-929.33,0.00021643,2]
[323307951,1713883845336,-843.74,0.00021643,2]
[323307953,1713883845346,-500.0,0.00021643,2]
[323307955,1713883845357,-773.44,0.00021643,2]
[323307957,1713883845366,-500.0,0.00021643,2]
[323307959,1713883845375,-500.0,0.00021643,2]
[323307982,1713883845542,-835.58,0.00021643,2]
[323307985,1713883845558,-504.43616185,0.00021643,2]
[323307987,1713883845568,-943.99,0.00021643,2]
[323307989,1713883845577,-500.0,0.00021643,2]
[323307991,1713883845586,-500.0,0.00021643,2]
[323307993,1713883845596,-531.06,0.00021643,2]
[323307995,1713883845605,-1731.85,0.00021643,2]
[323307997,1713883845615,-599.02,0.00021643,2]
[323307999,1713883845624,-324.2141276,0.00021643,2]
[323308001,1713883845633,-630.75,0.00021643,2]
[323308002,1713883845643,-535.77,0.00021643,2]
[323308004,1713883845652,-1515.48,0.00021643,2]
[323308006,1713883845661,-1307.17,0.00021643,2]
[323308008,1713883845671,-693.33,0.00021643,2]
[323308009,1713883845681,-1012.35,0.00021643,2]
[323308010,1713883845690,-756.54,0.00021643,2]
[323308011,1713883845699,-678.94,0.00021643,2]
[323308012,1713883845709,-1198.42,0.00021643,2]
[323308013,1713883845717,-612.11,0.00021643,2]
[323308014,1713883845726,-500.0,0.00021643,2]
[323308015,1713883845735,-500.0,0.00021643,2]
[323308016,1713883845745,-1682.38,0.00021643,2]
[323308017,1713883845754,-500.0,0.00021643,2]
[323308018,1713883845763,-655.72,0.00021643,2]
[323308019,1713883845772,-1333.1,0.00021643,2]
[323308021,1713883845781,-5073.58,0.00021643,2]
[323308023,1713883845790,-12338.54,0.00021643,2]
[323308025,1713883845799,-1327.34,0.00021643,2]
[323308027,1713883845808,-2883.91,0.00021643,2]
[323308029,1713883845817,-567.12,0.00021643,2]
[323308031,1713883845826,-863.93,0.00021643,2]
[323308033,1713883845835,-500.0,0.00021643,2]
[323308035,1713883845844,-563.81,0.00021643,2]
[323308037,1713883845853,-9792.91,0.00021643,2]
[323308039,1713883845862,-772.83,0.00021643,2]
[323308041,1713883845871,-948.24,0.00021643,2]
[323308043,1713883845880,-500.0,0.00021643,2]
[323308045,1713883845890,-1459.08,0.00021643,2]
[323308047,1713883845899,-3152.36,0.00021643,2]
[323308049,1713883845907,-500.0,0.00021643,2]
[323308051,1713883845917,-500.0,0.00021643,2]
[323308053,1713883845926,-488.014382,0.00021643,2]
[323308055,1713883845936,-880.11,0.00021643,2]
[323308057,1713883845944,-500.0,0.00021643,2]
[323308059,1713883845953,-953.05,0.00021643,2]
[323308061,1713883845963,-500.0,0.00021643,2]
[323308063,1713883845972,-2789.52,0.00021643,2]
[323308064,1713883845981,-151.0,0.00021643,2]
[323308066,1713883845990,-599.98,0.00021643,2]
[323308068,1713883845999,-500.0,0.00021643,2]
[323308070,1713883846008,-609.44,0.00021643,2]
[323308072,1713883846017,-1503.26,0.00021643,2]
[323308074,1713883846026,-4876.49,0.00021643,2]
[323308076,1713883846035,-500.0,0.00021643,2]
[323308078,1713883846044,-4690.71,0.00021643,2]
[323308080,1713883846053,-151.0,0.00021643,2]
[323308082,1713883846062,-7956.35,0.00021643,2]
[323308084,1713883846072,-500.0,0.00021643,2]
[323308086,1713883846081,-702.23,0.00021643,2]
[323308088,1713883846090,-877.33,0.00021643,2]
[323308090,1713883846099,-5128.78,0.00021643,2]
[323308092,1713883846109,-1915.26,0.00021643,2]
[323308094,1713883846118,-500.0,0.00021643,2]
[323308096,1713883846127,-1386.48,0.00021643,2]
[323308098,1713883846137,-949.46,0.00021643,2]
[323308100,1713883846147,-3273.74,0.00021643,2]
[323308103,1713883846156,-569.36,0.00021643,2]
[323308105,1713883846166,-1351.08,0.00021643,2]
[323308106,1713883846176,-500.0,0.00021643,2]
[323308109,1713883846186,-206.4923416,0.00021644,2]
[323308111,1713883846195,-153.0,0.00021644,2]
[323308112,1713883846204,-153.0,0.00021644,2]
[323308114,1713883846213,-153.0,0.00021644,2]
[323308116,1713883846222,-153.0,0.00021644,2]
[323308118,1713883846232,-153.0,0.00021644,2]
[323308120,1713883846242,-157.15569525,0.00021697,2]
[323308123,1713883846252,-17581.56346869,0.00021914,2]
[323308124,1713883846261,-10117.08160631,0.00021917,2]
[323308127,1713883846271,-3000.0,0.00021917,2]
[323308129,1713883846281,-238.34833759,0.00021917,2]
[323308130,1713883846291,-1000.0,0.00021917,2]
[323308132,1713883846300,-154.81422293,0.00021917,2]
[323308134,1713883846309,-200.0,0.00021917,2]
[323308136,1713883846318,-154.81422293,0.00021917,2]
[323308139,1713883846328,-1053.48,0.00021917,2]
[323308141,1713883846338,-500.0,0.00021917,2]
[323308142,1713883846347,-539.12395781,0.00021917,2]
[323308144,1713883846360,-557.08,0.00021917,2]
[323308146,1713883846369,-1412.41,0.00021917,2]
[323308148,1713883846378,-548.05442945,0.00021917,2]
[323308150,1713883846387,-500.0,0.00021917,2]
[323308152,1713883846396,-500.0,0.00021917,2]
[323308154,1713883846405,-500.0,0.00021917,2]
[323308156,1713883846415,-500.0,0.00021917,2]
[323308158,1713883846424,-500.0,0.00021917,2]
[323308160,1713883846434,-500.0,0.00021917,2]
[323308162,1713883846444,-1320.99,0.00021917,2]
[323308164,1713883846454,-1097.94,0.00021917,2]
[323308166,1713883846463,-673.0,0.00021917,2]
[323308168,1713883846472,-929.33,0.00021917,2]
[323308170,1713883846482,-843.74,0.00021917,2]
[323308172,1713883846491,-500.0,0.00021917,2]
[323308174,1713883846500,-773.44,0.00021917,2]
[323308176,1713883846510,-500.0,0.00021917,2]
[323308178,1713883846519,-500.0,0.00021917,2]
[323308181,1713883846529,-835.58,0.00021917,2]
[323308183,1713883846541,-943.99,0.00021917,2]
[323308185,1713883846550,-500.0,0.00021917,2]
[323308187,1713883846559,-500.0,0.00021917,2]
[323308189,1713883846569,-531.06,0.00021917,2]
[323308191,1713883846578,-599.02,0.00021917,2]
[323308193,1713883846587,-1731.85,0.00021917,2]
[323308195,1713883846596,-630.75,0.00021917,2]
[323308197,1713883846606,-535.77,0.00021917,2]
[323308199,1713883846615,-1515.48,0.00021917,2]
[323308201,1713883846624,-1307.17,0.00021917,2]
[323308203,1713883846634,-693.33,0.00021917,2]
[323308205,1713883846643,-1012.35,0.00021917,2]
[323308207,1713883846652,-756.54,0.00021917,2]
[323308209,1713883846661,-678.94,0.00021917,2]
[323308211,1713883846670,-1198.42,0.00021917,2]
[323308212,1713883846681,-612.11,0.00021917,2]
[323308215,1713883846690,-500.0,0.00021917,2]
[323308216,1713883846699,-500.0,0.00021917,2]
[323308218,1713883846708,-1682.38,0.00021917,2]
[323308220,1713883846718,-500.0,0.00021917,2]
[323308222,1713883846727,-655.72,0.00021917,2]
[323308225,1713883846737,-1333.1,0.00021917,2]
[323308227,1713883846746,-5073.58,0.00021917,2]
[323308228,1713883846755,-12338.54,0.00021917,2]
[323308231,1713883846765,-1327.34,0.00021917,2]
[323308233,1713883846775,-2883.91,0.00021917,2]
[323308234,1713883846784,-567.12,0.00021917,2]
[323308236,1713883846793,-863.93,0.00021917,2]
[323308238,1713883846802,-500.0,0.00021917,2]
[323308240,1713883846811,-563.81,0.00021917,2]
[323308242,1713883846821,-9792.91,0.00021917,2]
[323308244,1713883846831,-772.83,0.00021917,2]
[323308247,1713883846840,-948.24,0.00021917,2]
[323308249,1713883846850,-500.0,0.00021917,2]
[323308250,1713883846859,-1459.08,0.00021917,2]
[323308253,1713883846869,-3053.39274285,0.00021917,2]
[323308266,1713883846980,-98.96725715,0.00021917,2]
[323308267,1713883846989,-190.29383188,0.00021917,2]
[323308270,1713883847001,-309.70616812,0.00021917,2]
[323308272,1713883847010,-500.0,0.00021917,2]
[323308274,1713883847020,-880.11,0.00021917,2]
[323308276,1713883847029,-500.0,0.00021917,2]
[323308278,1713883847038,-953.05,0.00021917,2]
[323308280,1713883847048,-500.0,0.00021917,2]
[323308282,1713883847057,-2789.52,0.00021917,2]
[323308284,1713883847066,-151.0,0.00021917,2]
[323308286,1713883847076,-599.98,0.00021917,2]
[323308288,1713883847085,-500.0,0.00021917,2]
[323308290,1713883847094,-609.44,0.00021917,2]
[323308292,1713883847103,-934.31120043,0.00021917,2]
[323308303,1713883847204,-142.48402107,0.00021917,2]
[323308707,1713883852323,-426.4647785,0.00021917,2]
[323308709,1713883852333,-4876.49,0.00021917,2]
[323308711,1713883852343,-500.0,0.00021917,2]
[323308713,1713883852354,-4690.71,0.00021917,2]
[323308715,1713883852364,-151.0,0.00021917,2]
[323308717,1713883852372,-7956.35,0.00021917,2]
[323308719,1713883852381,-500.0,0.00021917,2]
[323308720,1713883852391,-702.23,0.00021917,2]
[323308723,1713883852401,-877.33,0.00021917,2]
[323308724,1713883852410,-5128.78,0.00021917,2]
[323308726,1713883852420,-1915.26,0.00021917,2]
[323308729,1713883852433,-619.879421,0.00021917,2]
[323308731,1713883852443,-619.879421,0.00021917,2]
[323308733,1713883852452,-500.0,0.00021917,2]
[323308735,1713883852461,-1386.48,0.00021917,2]
[323308737,1713883852470,-509.920182,0.00021917,2]
[323308738,1713883852479,-949.46,0.00021917,2]
[323308740,1713883852488,-509.920182,0.00021917,2]
[323308743,1713883852498,-3273.74,0.00021917,2]
[323308745,1713883852506,-569.36,0.00021917,2]
[323308747,1713883852516,-1351.08,0.00021917,2]
[323308749,1713883852525,-500.0,0.00021917,2]
[323308750,1713883852535,-10000.0,0.00021918,2]
[323308752,1713883852544,-350.0,0.00021955,2]
[323308755,1713883852553,-7017.13298449,0.00021991,7]
[323308757,1713883852563,-20419.96341768,0.00022,4]
[323308758,1713883852572,-159.06202442,0.00022,2]
[323308760,1713883852581,-500.0,0.00022,2]
[323308762,1713883852591,-151.0,0.00022,2]
[323308765,1713883852601,-155.3749949,0.00022046,2]
[323308766,1713883852610,-153.0,0.00022046,2]
[323308768,1713883852619,-306.0,0.00022046,2]
[323308770,1713883852627,-154.9240816,0.00022046,2]
[323308773,1713883852637,-151.0,0.00022046,2]
[323308774,1713883852646,-150.0,0.00022103,2]
[323308777,1713883852656,-150.0,0.00022103,2]
[323308778,1713883852665,-306.6323411,0.0002211,2]
[323308780,1713883852674,-1053.48,0.00022191,2]
[323308782,1713883852687,-500.0,0.00022191,2]
[323308784,1713883852697,-557.08,0.00022191,2]
[323308787,1713883852706,-1412.41,0.00022191,2]
[323308788,1713883852715,-514.37567635,0.00022191,2]
[323308791,1713883852724,-500.0,0.00022191,2]
[323308804,1713883852832,-595.15302734,0.00022191,2]
[323308806,1713883852841,-500.0,0.00022191,2]
[323308808,1713883852851,-500.0,0.00022191,2]
[323308810,1713883852860,-500.0,0.00022191,2]
[323308812,1713883852869,-1320.99,0.00022191,2]
[323308814,1713883852878,-1097.94,0.00022191,2]
[323308816,1713883852887,-673.0,0.00022191,2]
[323308818,1713883852896,-929.33,0.00022191,2]
[323308820,1713883852906,-843.74,0.00022191,2]
[323308822,1713883852915,-500.0,0.00022191,2]
[323308824,1713883852924,-773.44,0.00022191,2]
[323308826,1713883852937,-500.0,0.00022191,2]
[323308828,1713883852945,-500.0,0.00022191,2]
[323308830,1713883852955,-835.58,0.00022191,2]
[323308832,1713883852964,-943.99,0.00022191,2]
[323308834,1713883852973,-500.0,0.00022191,2]
[323308836,1713883852982,-500.0,0.00022191,2]
[323308838,1713883852992,-531.06,0.00022191,2]
[323308840,1713883853001,-599.02,0.00022191,2]
[323308842,1713883853010,-1731.85,0.00022191,2]
[323308844,1713883853019,-630.75,0.00022191,2]
[323308846,1713883853028,-535.77,0.00022191,2]
[323308848,1713883853038,-1515.48,0.00022191,2]
[323308850,1713883853047,-1307.17,0.00022191,2]
[323308852,1713883853056,-693.33,0.00022191,2]
[323308854,1713883853065,-1012.35,0.00022191,2]
[323308856,1713883853074,-756.54,0.00022191,2]
[323308858,1713883853083,-678.94,0.00022191,2]
[323308860,1713883853092,-1198.42,0.00022191,2]
[323308862,1713883853101,-612.11,0.00022191,2]
[323308864,1713883853111,-500.0,0.00022191,2]
[323308866,1713883853120,-500.0,0.00022191,2]
[323308868,1713883853130,-1682.38,0.00022191,2]
[323308870,1713883853140,-500.0,0.00022191,2]
[323308873,1713883853150,-655.72,0.00022191,2]
[323308875,1713883853159,-1333.1,0.00022191,2]
[323308877,1713883853169,-5073.58,0.00022191,2]
[323308879,1713883853182,-12338.54,0.00022191,2]
[323308881,1713883853191,-1327.34,0.00022191,2]
[323308883,1713883853201,-2883.91,0.00022191,2]
[323308885,1713883853210,-567.12,0.00022191,2]
[323308887,1713883853219,-863.93,0.00022191,2]
[323308889,1713883853228,-500.0,0.00022191,2]
[323308891,1713883853238,-563.81,0.00022191,2]
[323308893,1713883853248,-9792.91,0.00022191,2]
[323308895,1713883853257,-772.83,0.00022191,2]
[323308897,1713883853267,-948.24,0.00022191,2]
[323308899,1713883853276,-500.0,0.00022191,2]
[323308901,1713883853285,-1459.08,0.00022191,2]
[323308903,1713883853295,-3152.36,0.00022191,2]
[323308905,1713883853304,-500.0,0.00022191,2]
[323308907,1713883853313,-500.0,0.00022191,2]
[323308909,1713883853321,-880.11,0.00022191,2]
[323308911,1713883853331,-500.0,0.00022191,2]
[323308913,1713883853340,-953.05,0.00022191,2]
[323308915,1713883853349,-500.0,0.00022191,2]
[323308917,1713883853363,-2789.52,0.00022191,2]
[323308919,1713883853371,-599.98,0.00022191,2]
[323308921,1713883853380,-500.0,0.00022191,2]
[323308923,1713883853389,-609.44,0.00022191,2]
[323308925,1713883853399,-1503.26,0.00022191,2]
[323308927,1713883853408,-4876.49,0.00022191,2]
[323308929,1713883853418,-500.0,0.00022191,2]
[323308931,1713883853430,-4690.71,0.00022191,2]
[323308933,1713883853439,-7956.35,0.00022191,2]
[323308935,1713883853449,-500.0,0.00022191,2]
[323308937,1713883853459,-702.23,0.00022191,2]
[323308939,1713883853468,-877.33,0.00022191,2]
[323308941,1713883853477,-5128.78,0.00022191,2]
[323308943,1713883853486,-1915.26,0.00022191,2]
[323308945,1713883853496,-619.879421,0.00022191,2]
[323308947,1713883853505,-619.879421,0.00022191,2]
[323308949,1713883853514,-500.0,0.00022191,2]
[323308951,1713883853523,-1386.48,0.00022191,2]
[323308953,1713883853534,-509.920182,0.00022191,2]
[323308955,1713883853544,-949.46,0.00022191,2]
[323308957,1713883853553,-509.920182,0.00022191,2]
[323308959,1713883853563,-3273.74,0.00022191,2]
[323308961,1713883853572,-569.36,0.00022191,2]
[323308963,1713883853581,-1351.08,0.00022191,2]
[323308965,1713883853590,-500.0,0.00022191,2]
[323308967,1713883853599,-2000.0,0.000223,2]
[323308969,1713883853608,-2000.0,0.000223,2]
[323308971,1713883853617,-150.0,0.0002232,2]
[323308973,1713883853626,-620.12586112,0.00022462,2]
[323308975,1713883853635,-1053.48,0.00022465,2]
[323308977,1713883853644,-500.0,0.00022465,2]
[323308979,1713883853653,-557.08,0.00022465,2]
[323308981,1713883853662,-1412.41,0.00022465,2]
[323308983,1713883853671,-500.0,0.00022465,2]
[323308985,1713883853681,-500.0,0.00022465,2]
[323308987,1713883853690,-500.0,0.00022465,2]
[323308989,1713883853699,-500.0,0.00022465,2]
[323308991,1713883853707,-1320.99,0.00022465,2]
[323308993,1713883853716,-1097.94,0.00022465,2]
[323308995,1713883853726,-673.0,0.00022465,2]
[323308997,1713883853734,-929.33,0.00022465,2]
[323308999,1713883853744,-843.74,0.00022465,2]
[323309001,1713883853753,-336.537082,0.00022465,2]
[323309003,1713883853762,-773.44,0.00022465,2]
[323309005,1713883853771,-288.75,0.00022465,2]
[323309007,1713883853780,-500.0,0.00022465,2]
[323309009,1713883853789,-835.58,0.00022465,2]
[323309011,1713883853798,-943.99,0.00022465,2]
[323309013,1713883853807,-500.0,0.00022465,2]
[323309015,1713883853817,-500.0,0.00022465,2]
[323309018,1713883853827,-531.06,0.00022465,2]
[323309020,1713883853837,-599.02,0.00022465,2]
[323309022,1713883853846,-1731.85,0.00022465,2]
[323309024,1713883853856,-630.75,0.00022465,2]
[323309026,1713883853865,-535.77,0.00022465,2]
[323309027,1713883853873,-1515.48,0.00022465,2]
[323309030,1713883853883,-1307.17,0.00022465,2]
[323309032,1713883853893,-693.33,0.00022465,2]
[323309034,1713883853902,-1012.35,0.00022465,2]
[323309036,1713883853911,-756.54,0.00022465,2]
[323309038,1713883853921,-678.94,0.00022465,2]
[323309040,1713883853932,-1198.42,0.00022465,2]
[323309042,1713883853941,-612.11,0.00022465,2]
[323309044,1713883853951,-500.0,0.00022465,2]
[323309046,1713883853960,-500.0,0.00022465,2]
[323309048,1713883853970,-1682.38,0.00022465,2]
[323309050,1713883853979,-500.0,0.00022465,2]
[323309052,1713883853988,-655.72,0.00022465,2]
[323309054,1713883853997,-1333.1,0.00022465,2]
[323309056,1713883854006,-5073.58,0.00022465,2]
[323309058,1713883854016,-12338.54,0.00022465,2]
[323309060,1713883854025,-1327.34,0.00022465,2]
[323309062,1713883854035,-2883.91,0.00022465,2]
[323309064,1713883854044,-567.12,0.00022465,2]
[323309066,1713883854053,-863.93,0.00022465,2]
[323309068,1713883854062,-500.0,0.00022465,2]
[323309070,1713883854071,-563.81,0.00022465,2]
[323309072,1713883854081,-9792.91,0.00022465,2]
[323309074,1713883854090,-772.83,0.00022465,2]
[323309076,1713883854099,-948.24,0.00022465,2]
[323309078,1713883854108,-500.0,0.00022465,2]
[323309080,1713883854117,-1459.08,0.00022465,2]
[323309082,1713883854126,-3152.36,0.00022465,2]
[323309084,1713883854135,-500.0,0.00022465,2]
[323309086,1713883854145,-500.0,0.00022465,2]
[323309088,1713883854155,-880.11,0.00022465,2]
[323309090,1713883854164,-500.0,0.00022465,2]